bitfinex/quotes_SOLUSD_20241121
["timestamp","ask_amount","ask_price","bid_price","bid_amount"]
[1732205555246,22.55526828,249.22,249.11,18.54276828]
[1732205556653,18.54276828,249.24,249.15,18.54276828]
[1732205556856,22.55496828,249.24,249.15,18.54276828]
[1732205557869,22.55496828,249.24,249.13,18.54276828]
[1732205558455,18.54276828,249.22,249.12,20.0]
[1732205558782,18.54276828,249.22,249.13,18.54276828]
[1732205559091,22.55496828,249.24,249.13,18.54276828]
[1732205560680,10.029,249.28,249.17,18.54276828]
[1732205560681,4.0119,249.26,249.17,18.54276828]
[1732205560981,18.54276828,249.24,249.14,20.0]
[1732205561162,22.55466828,249.26,249.15,18.54276828]
[1732205561562,22.55496828,249.24,249.14,20.0]
[1732205561756,4.0122,249.24,249.15,18.54276828]
[1732205562159,4.0119,249.26,249.17,18.54276828]
[1732205562968,22.55466828,249.26,249.15,18.54276828]
[1732205563386,4.0116,249.28,249.19,18.54276828]
[1732205563582,22.55436828,249.28,249.19,18.54276828]
[1732205563886,18.54276828,249.26,249.15,18.54276828]
[1732205564076,4.0116,249.28,249.05,25.2150799]
[1732205564077,18.54276828,249.24,249.14,20.0]
[1732205564286,4.0116,249.28,249.09,18.54276828]
[1732205564287,18.54276828,249.2,249.09,18.54276828]
[1732205564776,18.54276828,249.16,249.05,18.54276828]
[1732205565385,4.0136,249.15,249.05,18.54276828]
[1732205566276,4.0136,249.15,249.06,20.0]
[1732205569390,18.54276828,249.18,249.07,18.54276828]
[1732205569762,18.54276828,249.2,249.15,7.38855918]
[1732205570856,4.013,249.19,249.15,7.38855918]
[1732205572786,18.54276828,249.22,249.15,7.38855918]
[1732205573781,18.54276828,249.18,249.15,7.38855918]
[1732205573985,18.54276828,249.16,249.15,7.38855918]
[1732205574184,22.55616828,249.16,249.15,7.38855918]
[1732205574670,22.55616828,249.16,249.15,6.11612084]
[1732205575966,102.93053656,249.16,248.94,18.54276828]
[1732205576170,18.54276828,249.04,248.94,18.54276828]
[1732205576385,22.55826828,249.04,248.94,18.54276828]
[1732205576663,18.54276828,249.0,248.9,18.54276828]
[1732205577376,18.54276828,249.02,248.94,18.54276828]
[1732205577684,22.55786828,249.06,248.96,18.54276828]
[1732205579000,18.54276828,249.04,248.95,20.0]
[1732205580166,18.54276828,249.02,248.93,20.0]
[1732205580384,18.54276828,249.02,248.92,18.54276828]
[1732205581084,18.54276828,249.02,248.9,18.54276828]
[1732205581496,18.54276828,249.02,248.92,18.54276828]
[1732205581997,18.54276828,248.93,248.84,18.54276828]
[1732205582174,18.54276828,248.91,248.8,18.54276828]
[1732205583095,18.54276828,248.91,248.74,23.5796]
[1732205583096,18.54276828,248.89,248.74,23.5796]
[1732205583305,18.54276828,248.87,248.76,18.54276828]
[1732205583487,18.54276828,248.89,248.78,18.54276828]
[1732205583675,18.54276828,248.89,248.8,18.54276828]
[1732205583877,18.54276828,248.91,248.8,18.54276828]
[1732205584496,18.54276828,248.91,248.76,18.54276828]
[1732205584497,18.54276828,248.86,248.76,18.54276828]
[1732205584695,18.54276828,248.88,248.78,18.54276828]
[1732205585871,18.54276828,248.88,248.79,20.0]
[1732205586681,18.54276828,248.9,248.8,18.54276828]
[1732205586881,18.54276828,248.88,248.79,20.0]
[1732205587191,18.54276828,248.82,248.72,24.55368586]
[1732205587384,4.0174,248.92,248.72,18.54276828]
[1732205587584,18.54276828,248.82,248.72,18.54276828]
[1732205587988,18.54276828,248.84,248.74,18.54276828]
[1732205588691,18.54276828,248.84,248.75,20.0]
[1732205589304,18.54276828,248.88,248.78,18.54276828]
[1732205589675,18.54276828,248.88,248.76,18.54276828]
[1732205589908,4.0173,248.92,248.76,18.54276828]
[1732205589909,18.54276828,248.86,248.76,18.54276828]
[1732205590401,18.54276828,248.84,248.75,20.0]
[1732205590715,18.54276828,248.86,248.76,18.54276828]
[1732205591009,18.54276828,248.9,248.8,18.54276828]
[1732205591718,18.54276828,248.9,248.82,18.54276828]
[1732205592006,22.56006828,248.92,248.82,18.54276828]
[1732205592688,18.54276828,248.9,248.82,18.54276828]
[1732205593013,22.56006828,248.92,248.82,18.54276828]
[1732205593607,4.0173,248.92,248.84,18.54276828]
[1732205593781,18.54276828,248.9,248.8,18.54276828]
[1732205595083,22.56046828,248.9,248.8,18.54276828]
[1732205595483,4.0167,248.96,248.87,18.54276828]
[1732205595799,4.0162,248.99,248.91,18.54276828]
[1732205595996,4.0156,249.03,248.93,18.54276828]
[1732205596199,8.6099,249.05,248.88,18.54276828]
[1732205596200,8.6099,249.05,248.95,18.54276828]
[1732205596891,12.6252,249.05,248.96,4.0167]
[1732205598514,18.54276828,249.04,248.96,4.0167]
[1732205598717,22.55826828,249.04,248.95,10.0419]
[1732205598894,18.54276828,249.04,248.95,28.58466828]
[1732205599097,18.54276828,249.06,248.95,32.60146828]
[1732205599287,18.54276828,249.06,248.96,20.0]
[1732205599489,22.55756828,249.08,248.97,18.54276828]
[1732205599988,18.54276828,249.08,248.99,18.54276828]
[1732205600428,18.54276828,249.1,248.99,18.54276828]
[1732205600592,13.0315,249.12,248.96,20.0]
[1732205600593,18.54276828,249.12,249.04,4.0154]
[1732205600915,18.54276828,249.14,249.04,4.0154]
[1732205601707,4.0139,249.13,249.04,14.0539]
[1732205601894,18.54276828,249.12,249.04,10.0385]
[1732205602320,18.54276828,249.1,249.04,10.0385]
[1732205602487,18.54276828,249.08,248.99,14.0565]
[1732205602692,18.54276828,249.04,248.95,18.54276828]
[1732205602887,18.54276828,249.08,248.99,18.54276828]
[1732205603221,18.54276828,249.12,249.01,18.54276828]
[1732205603514,18.54276828,249.1,249.01,18.54276828]
[1732205603810,18.54276828,249.1,249.02,4.0157]
[1732205604025,22.55666828,249.14,249.03,18.54276828]
[1732205604495,18.54276828,249.14,249.05,18.54276828]
[1732205604700,22.55656828,249.14,249.05,18.54276828]
[1732205605012,18.54276828,249.14,249.05,18.54276828]
[1732205605991,18.54276828,249.14,249.06,14.0527]
[1732205606195,4.0137,249.15,249.06,14.0527]
[1732205606401,18.54276828,249.16,249.07,18.54276828]
[1732205606723,18.54276828,249.2,249.11,18.54276828]
[1732205607016,13.35706839,249.29,249.1,20.0]
[1732205607017,18.54276828,249.26,249.17,18.54276828]
[1732205607317,8.6039,249.32,249.1,20.0]
[1732205607318,18.54276828,249.28,249.19,18.54276828]
[1732205607827,18.54276828,249.28,249.12,41.56746828]
[1732205607828,18.54276828,249.3,249.21,18.54276828]
[1732205608003,18.54276828,249.3,249.22,14.0437]
[1732205608195,18.54276828,249.32,249.23,38.54276828]
[1732205608524,18.54276828,249.34,249.25,18.54276828]
[1732205608688,18.54276828,249.36,249.27,18.54276828]
[1732205608889,4.0101,249.37,249.27,18.54276828]
[1732205609117,22.55286828,249.37,249.27,18.54276828]
[1732205609418,18.54276828,249.37,249.27,18.54276828]
[1732205609788,18.54276828,249.37,249.28,20.0]
[1732205610190,18.54276828,249.37,249.28,24.0115]
[1732205610710,18.54276828,249.37,249.28,4.0115]
[1732205611320,4.0102,249.37,249.23,18.54276828]
[1732205611623,18.54276828,249.31,249.2,13.483]
[1732205611824,18.54276828,249.29,249.19,18.54276828]
[1732205612316,18.54276828,249.25,249.17,18.54276828]
[1732205612529,18.54276828,249.25,249.15,18.54276828]
[1732205612820,18.54276828,249.23,249.13,18.54276828]
[1732205613194,18.54276828,249.23,249.13,22.55656828]
[1732205613418,18.54276828,249.23,249.15,18.54276828]
[1732205613621,18.54276828,249.21,249.11,18.54276828]
[1732205613791,18.54276828,249.19,249.11,18.54276828]
[1732205613991,18.54276828,249.21,249.11,18.54276828]
[1732205614195,12.8566,249.44,249.26,162.7]
[1732205614395,18.54276828,249.36,249.26,18.54276828]
[1732205615101,18.54276828,249.34,249.26,18.54276828]
[1732205615293,18.54276828,249.34,249.24,41.80426828]
[1732205615495,18.54276828,249.32,249.24,10.0302]
[1732205615702,22.55336828,249.34,249.24,32.58506828]
[1732205616111,22.55336828,249.34,249.24,28.57296828]
[1732205616620,22.55336828,249.34,249.21,4.0125]
[1732205616621,18.54276828,249.32,249.22,18.54276828]
[1732205617517,4.011,249.31,249.22,18.54276828]
[1732205618300,18.54276828,249.29,249.19,18.54276828]
[1732205618508,18.54276828,249.26,249.17,18.54276828]
[1732205618917,18.54276828,249.28,249.17,18.54276828]
[1732205619826,4.0117,249.27,249.17,18.54276828]
[1732205620240,18.54276828,249.22,249.13,10.0347]
[1732205620409,4.0117,249.27,249.16,18.54276828]
[1732205620742,18.54276828,249.32,249.2,18.54276828]
[1732205620927,18.54276828,249.34,249.24,18.54276828]
[1732205621716,18.54276828,249.34,249.25,4.012]
[1732205621717,4.0106,249.34,249.25,4.012]
[1732205621907,4.0106,249.34,249.26,18.54276828]
[1732205622102,4.0106,249.34,249.25,4.012]
[1732205622103,22.55306828,249.36,249.25,10.03]
[1732205622307,22.55306828,249.36,249.24,18.54276828]
[1732205622308,18.54276828,249.34,249.24,18.54276828]
[1732205622926,18.54276828,249.31,249.21,18.54276828]
[1732205623234,18.54276828,249.49,249.38,162.7]
[1732205623416,18.54276828,249.49,249.39,18.54276828]
[1732205623941,4.0083,249.48,249.39,18.54276828]
[1732205624316,24.0083,249.48,249.39,18.54276828]
[1732205624610,18.54276828,249.47,249.37,18.54276828]
[1732205624812,18.54276828,249.43,249.33,18.54276828]
[1732205625413,18.54276828,249.45,249.35,18.54276828]
[1732205626020,4.0089,249.44,249.35,18.54276828]
[1732205628427,4.0089,249.44,249.37,18.54276828]
[1732205628918,4.0089,249.44,249.34,4.0104]
[1732205628919,4.0089,249.44,249.35,18.54276828]
[1732205632930,3.07704626,249.45,249.35,18.54276828]
[1732205634334,4.0089,249.44,249.35,18.54276828]
[1732205636623,18.54276828,249.43,249.33,18.54276828]
[1732205637118,4.0089,249.44,249.35,18.54276828]
[1732205639443,4.0089,249.44,249.39,18.54276828]
[1732205639639,4.0089,249.44,249.41,18.54276828]
[1732205639846,4.0089,249.44,249.39,18.54276828]
[1732205640733,14.0291,249.48,249.39,18.54276828]
[1732205641059,18.54276828,249.47,249.37,18.54276828]
[1732205641547,18.54276828,249.45,249.37,18.54276828]
[1732205641737,14.0291,249.48,249.33,18.54276828]
[1732205641738,18.54276828,249.43,249.33,18.54276828]
[1732205642041,20.0,249.47,249.33,18.54276828]
[1732205642220,18.54276828,249.41,249.33,18.54276828]
[1732205642415,20.0,249.47,249.35,18.54276828]
[1732205642639,18.54276828,249.44,249.35,18.54276828]
[1732205642851,4.0091,249.43,249.33,18.54276828]
[1732205643352,18.54276828,249.42,249.33,18.54276828]
[1732205643839,20.0,249.47,249.3,14.0389]
[1732205644141,18.54276828,249.42,249.33,18.54276828]
[1732205644342,20.0,249.45,249.37,18.54276828]
[1732205645234,4.0089,249.44,249.37,18.54276828]
[1732205646945,3.38419256,249.52,249.3,10.0277]
[1732205646946,18.54276828,249.65,249.48,162.7]
[1732205647158,18.54276828,249.65,249.55,18.54276828]
[1732205648224,4.0057,249.64,249.55,18.54276828]
[1732205649251,14.0131,249.77,249.6,18.54276828]
[1732205649546,0.5,249.84,249.6,18.54276828]
[1732205649547,18.54276828,249.91,249.77,23.776884]
[1732205649844,18.54276828,249.85,249.75,18.54276828]
[1732205650150,0.5,249.95,249.75,23.776884]
[1732205650523,18.54276828,249.85,249.75,23.776884]
[1732205650726,22.54516828,249.85,249.77,23.776884]
[1732205650921,4.0024,249.85,249.77,23.776884]
[1732205651454,18.54276828,249.89,249.8,18.54276828]
[1732205651631,4.002,249.88,249.83,23.776884]
[1732205651820,22.54476828,249.88,249.81,23.776884]
[1732205652024,22.54476828,249.88,249.79,23.776884]
[1732205652433,22.54476828,249.88,249.81,23.776884]
[1732205652651,10.0016,249.96,249.81,23.776884]
[1732205652830,18.54276828,249.88,249.81,23.776884]
[1732205653021,18.54276828,249.88,249.79,23.776884]
[1732205653441,18.54276828,249.92,249.83,23.776884]
[1732205654140,18.54276828,249.94,249.84,18.54276828]
[1732205654456,3.31904286,249.96,249.84,18.54276828]
[1732205654457,18.54276828,250.07,250.03,23.776884]
[1732205654832,18.54276828,250.05,249.85,14.72303403]
[1732205655147,18.54276828,249.99,249.89,18.54276828]
[1732205655333,18.54276828,249.99,249.9,23.776884]
[1732205655536,18.54276828,250.01,249.92,23.776884]
[1732205656247,18.54276828,250.01,249.94,23.776884]
[1732205656562,7.25509475,250.07,249.94,23.776884]
[1732205656563,18.54276828,249.98,249.94,23.776884]
[1732205656736,18.54276828,250.03,249.94,23.776884]
[1732205657364,18.54276828,250.03,249.94,27.777684]
[1732205657538,18.54276828,250.03,249.94,23.776884]
[1732205659262,3.9992,250.05,249.94,23.776884]
[1732205659473,3.36086294,250.08,249.96,23.776884]
[1732205659767,18.54276828,250.07,249.98,23.776884]
[1732205659963,3.9974,250.16,249.98,23.776884]
[1732205660164,18.54276828,250.09,250.0,23.776884]
[1732205660551,18.54276828,250.07,249.95,34.1992]
[1732205660878,18.54276828,250.04,249.95,34.1992]
[1732205661177,22.54216828,250.04,249.95,34.1992]
[1732205661334,18.54276828,250.02,249.95,34.1992]
[1732205661642,3.9994,250.04,249.9,18.54276828]
[1732205661964,18.54276828,250.01,249.9,18.54276828]
[1732205662139,18.54276828,249.99,249.9,18.54276828]
[1732205662464,18.54276828,249.97,249.86,18.54276828]
[1732205663159,22.54296828,249.99,249.88,18.54276828]
[1732205663569,18.54276828,249.99,249.9,18.54276828]
[1732205663867,18.54276828,250.03,249.92,18.54276828]
[1732205664069,18.54276828,250.03,249.85,23.7575]
[1732205664070,18.54276828,250.03,249.94,18.54276828]
[1732205664240,18.54276828,250.05,249.96,18.54276828]
[1732205664446,3.999,250.06,249.85,23.2575]
[1732205664447,18.54276828,250.01,249.9,18.54276828]
[1732205664662,18.54276828,249.99,249.9,18.54276828]
[1732205665167,18.54276828,249.99,249.89,4.0017]
[1732205665339,18.54276828,249.94,249.85,9.2491]
[1732205665542,18.54276828,249.9,249.81,18.54276828]
[1732205665942,18.54276828,249.92,249.81,22.54566828]
[1732205666662,18.54276828,249.88,249.79,28.55086828]
[1732205666869,18.54276828,249.9,249.79,32.55416828]
[1732205667069,18.54276828,249.9,249.81,18.54276828]
[1732205667365,22.54436828,249.9,249.81,18.54276828]
[1732205667760,22.54436828,249.9,249.79,32.55416828]
[1732205667956,18.54276828,249.86,249.77,9.7153]
[1732205668345,18.54276828,249.88,249.77,28.25806828]
[1732205668757,18.54276828,249.86,249.77,28.25806828]
[1732205669061,18.54276828,249.88,249.77,28.25806828]
[1732205669238,22.54436828,249.9,249.79,18.54276828]
[1732205669441,18.54276828,249.81,249.68,4.005]
[1732205669742,18.54276828,249.79,249.68,28.55556828]
[1732205670163,18.54276828,249.79,249.68,32.56066828]
[1732205670465,18.54276828,249.79,249.68,28.55556828]
[1732205671197,20.0,249.89,249.68,32.56066828]
[1732205671470,4.0038,249.76,249.68,10.0128]
[1732205671848,4.0038,249.76,249.66,18.54276828]
[1732205672045,18.54276828,249.7,249.59,18.54276828]
[1732205672248,18.54276828,249.68,249.57,22.54956828]
[1732205672863,18.54276828,249.68,249.59,18.54276828]
[1732205673245,4.0052,249.67,249.59,18.54276828]
[1732205673754,10.0096,249.76,249.59,18.54276828]
[1732205673755,4.005,249.69,249.61,18.54276828]
[1732205673954,4.0033,249.79,249.67,18.54276828]
[1732205674499,18.54276828,249.78,249.67,18.54276828]
[1732205674769,4.0033,249.79,249.6,18.54276828]
[1732205674770,18.54276828,249.76,249.65,18.54276828]
[1732205675272,22.54666828,249.76,249.66,4.0054]
[1732205676367,22.54666828,249.76,249.65,18.54276828]
[1732205676574,18.54276828,249.72,249.61,18.54276828]
[1732205676947,18.54276828,249.73,249.63,18.54276828]
[1732205677148,18.54276828,249.71,249.61,18.54276828]
[1732205677348,18.54276828,249.69,249.59,28.55916828]
[1732205678081,18.54276828,249.64,249.53,28.56146828]
[1732205678371,18.54276828,249.64,249.55,18.54276828]
[1732205679075,18.54276828,249.62,249.55,4.007]
[1732205679567,18.54276828,249.62,249.53,32.56886828]
[1732205679983,18.54276828,249.59,249.5,4.008]
[1732205680450,18.54276828,249.59,249.5,14.028]
[1732205680978,18.54276828,249.61,249.5,14.028]
[1732205681176,18.54276828,249.61,249.51,18.54276828]
[1732205681343,4.0061,249.62,249.53,18.54276828]
[1732205681544,18.54276828,249.65,249.55,18.54276828]
[1732205682055,18.54276828,249.65,249.5,14.028]
[1732205682056,4.0054,249.66,249.57,18.54276828]
[1732205682569,18.54276828,249.67,249.57,18.54276828]
[1732205683361,18.54276828,249.67,249.58,4.0067]
[1732205683673,9.3407,249.7,249.58,4.0067]
[1732205683674,18.54276828,249.69,249.59,18.54276828]
[1732205684248,18.54276828,249.71,249.61,18.54276828]
[1732205684473,22.54686828,249.75,249.65,18.54276828]
[1732205685053,22.54646828,249.77,249.67,18.54276828]
[1732205685457,22.54646828,249.77,249.67,22.54786828]
[1732205685664,18.54276828,249.75,249.67,4.0051]
[1732205686060,22.54646828,249.77,249.67,14.0183]
[1732205686469,18.54276828,249.75,249.67,14.0183]
[1732205687249,22.54676828,249.75,249.67,14.0183]
[1732205687784,18.54276828,249.75,249.67,14.0183]
[1732205688073,35.202,249.82,249.67,14.0183]
[1732205688074,18.54276828,249.77,249.67,14.0183]
[1732205688764,18.54276828,249.77,249.67,32.56106828]
[1732205689956,22.54656828,249.77,249.67,32.56106828]
[1732205690156,4.0038,249.77,249.67,32.56106828]
[1732205690461,18.54276828,249.79,249.69,18.54276828]
[1732205690647,35.202,249.82,249.71,18.54276828]
[1732205690648,4.0032,249.8,249.71,18.54276828]
[1732205691085,18.54276828,249.81,249.71,18.54276828]
[1732205691380,4.0029,249.82,249.73,18.54276828]
[1732205692078,18.54276828,249.81,249.71,18.54276828]
[1732205692378,18.54276828,249.73,249.63,32.56346828]
[1732205692593,18.54276828,249.71,249.63,14.0207]
[1732205692878,18.54276828,249.71,249.61,18.54276828]
[1732205693049,18.54276828,249.67,249.57,32.56646828]
[1732205693252,18.54276828,249.69,249.59,18.54276828]
[1732205693886,20.0,249.81,249.64,18.54276828]
[1732205694091,18.54276828,249.74,249.64,18.54276828]
[1732205695085,30.0076,249.81,249.57,34.0581]
[1732205695086,18.54276828,249.76,249.66,18.54276828]
[1732205695291,18.54276828,249.78,249.68,18.54276828]
[1732205696000,18.54276828,249.76,249.67,14.0184]
[1732205696675,18.54276828,249.78,249.68,18.54276828]
[1732205697282,4.0027,249.83,249.7,18.54276828]
[1732205697283,18.54276828,249.81,249.7,18.54276828]
[1732205697985,20.27471436,250.05,249.67,14.0184]
[1732205697986,18.54276828,249.85,249.74,18.54276828]
[1732205698162,18.54276828,249.85,249.76,18.54276828]
[1732205698560,18.54276828,249.85,249.74,18.54276828]
[1732205698968,18.54276828,249.85,249.75,14.014]
[1732205699190,18.54276828,249.79,249.73,4.0042]
[1732205699581,18.54276828,249.76,249.64,18.54276828]
[1732205700169,18.54276828,249.74,249.64,18.54276828]
[1732205700694,18.54276828,249.76,249.66,18.54276828]
[1732205700990,18.54276828,249.76,249.67,14.0184]
[1732205701297,18.54276828,249.68,249.62,10.0149]
[1732205701595,18.54276828,249.68,249.59,22.54926828]
[1732205701807,14.0135,249.76,249.59,4.0065]
[1732205701965,18.54276828,249.62,249.59,10.0164]
[1732205702167,18.54276828,249.62,249.55,14.0251]
[1732205702394,18.54276828,249.64,249.55,14.0251]
[1732205702698,20.0,249.75,249.59,18.54276828]
[1732205702994,18.54276828,249.72,249.64,14.0201]
[1732205703666,18.54276828,249.74,249.64,14.0201]
[1732205703867,1.0,249.71,249.48,4.007]
[1732205704066,1.0,249.71,249.62,18.54276828]
[1732205704300,4.0037,249.77,249.64,18.54276828]
[1732205704301,0.5,249.73,249.64,18.54276828]
[1732205704672,0.5,249.62,249.38,0.09367462]
[1732205704995,0.5,249.72,249.61,18.54276828]
[1732205705200,0.5,249.72,249.64,18.54276828]
[1732205705407,0.5,249.74,249.64,18.54276828]
[1732205705569,0.5,249.72,249.64,18.54276828]
[1732205705764,0.5,249.74,249.64,18.54276828]
[1732205706096,0.5,249.74,249.66,18.54276828]
[1732205706272,18.54276828,249.77,249.66,18.54276828]
[1732205706467,0.5,249.74,249.66,18.54276828]
[1732205706706,18.54276828,249.77,249.68,18.54276828]
[1732205707011,0.5,249.78,249.68,18.54276828]
[1732205707312,0.5,249.8,249.72,18.54276828]
[1732205707793,0.5,249.75,249.67,18.54276828]
[1732205707976,18.54276828,249.79,249.69,18.54276828]
[1732205708294,0.5,249.79,249.71,18.54276828]
[1732205708493,0.5,249.78,249.71,18.54276828]
[1732205708692,0.5,249.79,249.71,18.54276828]
[1732205710007,0.5,249.79,249.71,18.54276828]
[1732205710172,0.5,249.77,249.71,18.54276828]
[1732205710489,0.5,249.8,249.74,18.54276828]
[1732205710693,32.583,249.86,249.79,18.54276828]
[1732205710694,0.5,249.86,249.79,18.54276828]
[1732205710881,0.5,249.9,249.72,18.54276828]
[1732205710882,0.5,249.9,249.72,0.60038969]
[1732205711117,0.5,249.94,249.84,18.54276828]
[1732205711270,28.78316828,249.95,249.86,18.54276828]
[1732205711585,28.84606828,250.01,249.9,18.54276828]
[1732205711826,18.54276828,250.01,249.92,18.54276828]
[1732205712226,0.5,250.0,249.9,18.54276828]
[1732205712446,18.54276828,249.95,249.86,18.54276828]
[1732205712579,18.54276828,249.98,249.88,18.54276828]
[1732205712899,18.54276828,250.0,249.9,18.54276828]
[1732205713118,19.04276828,249.98,249.88,18.54276828]
[1732205713597,18.54276828,249.98,249.88,18.54276828]
[1732205713784,0.5,249.97,249.88,18.54276828]
[1732205713984,0.5,250.03,249.91,18.54276828]
[1732205714179,18.54276828,250.03,249.93,18.54276828]
[1732205714593,18.54276828,250.05,249.95,18.54276828]
[1732205714791,19.04276828,250.05,249.95,18.54276828]
[1732205715040,0.5,250.02,249.93,18.54276828]
[1732205715326,18.54276828,250.01,249.91,18.54276828]
[1732205716309,19.04276828,250.01,249.91,18.54276828]
[1732205716812,14.3022,250.07,249.79,9.8008]
[1732205716813,18.54276828,249.96,249.86,18.54276828]
[1732205717390,18.54276828,249.92,249.79,13.70907261]
[1732205717574,0.5,249.93,249.84,18.54276828]
[1732205717780,0.5,249.93,249.86,18.54276828]
[1732205718282,0.5,249.93,249.88,18.54276828]
[1732205718562,0.5,249.97,249.88,18.54276828]
[1732205718814,44.74766828,250.08,249.79,13.70907261]
[1732205718815,19.04276828,250.0,249.9,18.54276828]
[1732205719003,1.0,249.98,249.9,18.54276828]
[1732205719302,0.5,250.12,249.79,13.70907261]
[1732205719303,0.5,250.07,249.92,18.54276828]
[1732205719507,19.04276828,250.09,249.97,18.54276828]
[1732205719807,19.04276828,250.09,249.91,10.0887]
[1732205719808,18.54276828,250.09,249.99,18.54276828]
[1732205719993,18.54276828,250.06,249.95,18.54276828]
[1732205720177,18.54276828,250.08,249.99,18.54276828]
[1732205720399,0.5,250.1,249.99,18.54276828]
[1732205720400,19.04276828,250.1,249.99,18.54276828]
[1732205720778,19.04276828,250.1,249.91,13.95098526]
[1732205720779,18.54276828,250.14,250.03,18.54276828]
[1732205721304,1.0,250.16,249.91,3.86228526]
[1732205721305,18.54276828,250.04,249.91,3.86228526]
[1732205721508,18.54276828,249.99,249.89,18.54276828]
[1732205722203,0.5,250.0,249.89,18.54276828]
[1732205722383,0.5,250.0,249.91,18.54276828]
[1732205722708,18.54276828,250.01,249.86,18.54276828]
[1732205722709,0.5,249.95,249.86,18.54276828]
[1732205723015,37.1566,250.03,249.92,18.54276828]
[1732205723016,0.5,250.02,249.92,18.54276828]
[1732205723304,19.04276828,250.08,249.97,18.54276828]
[1732205723608,19.04276828,250.02,249.93,18.54276828]
[1732205723797,18.54276828,249.98,249.89,18.54276828]
[1732205723980,22.54146828,250.08,249.82,10.0887]
[1732205723981,19.04276828,249.96,249.85,18.54276828]
[1732205724179,0.5,249.97,249.87,18.54276828]
[1732205724394,0.5,249.99,249.89,18.54276828]
[1732205725022,0.5,249.97,249.91,18.54276828]
[1732205725195,0.5,250.11,250.09,162.7]
[1732205725569,0.5,250.05,249.96,18.54276828]
[1732205725808,0.5,250.12,250.02,18.54276828]
[1732205726415,0.5,250.09,249.9,3.80923793]
[1732205726705,0.5,250.04,249.94,18.54276828]
[1732205726905,18.54276828,250.05,249.96,18.54276828]
[1732205727289,0.5,250.03,249.94,18.54276828]
[1732205727482,19.04276828,250.03,249.94,18.54276828]
[1732205727695,19.54276828,250.05,249.94,18.54276828]
[1732205727998,3.85388191,250.15,249.9,18.54276828]
[1732205727999,0.5,249.99,249.9,18.54276828]
[1732205728789,0.5,249.97,249.9,18.54276828]
[1732205728989,0.5,250.01,249.92,18.54276828]
[1732205729179,0.5,250.02,249.96,18.54276828]
[1732205729389,1.0,250.12,250.0,18.54276828]
[1732205729586,19.54276828,250.12,250.0,18.54276828]
[1732205729898,0.5,250.06,249.98,18.54276828]
[1732205730300,0.5,250.07,249.98,18.54276828]
[1732205730605,0.5,250.07,249.85,27.0234]
[1732205730606,0.5,250.03,249.96,18.54276828]
[1732205730815,1.0,249.97,249.85,3.82152372]
[1732205731014,0.5,249.97,249.89,18.54276828]
[1732205731444,0.5,249.96,249.89,18.54276828]
[1732205731731,0.5,249.95,249.87,18.54276828]
[1732205732030,0.5,249.91,249.85,18.54276828]
[1732205732198,0.5,249.95,249.89,18.54276828]
[1732205732395,0.5,249.97,249.91,18.54276828]
[1732205732921,11.1375,250.15,249.95,18.54276828]
[1732205733213,18.54276828,250.1,249.99,18.54276828]
[1732205733912,3.9977,250.14,249.99,18.54276828]
[1732205734132,18.54276828,250.12,250.01,18.54276828]
[1732205734367,18.54276828,250.1,249.98,18.54276828]
[1732205736804,18.54276828,250.08,249.96,18.54276828]
[1732205737314,18.54276828,250.1,249.98,18.54276828]
[1732205737909,18.54276828,250.1,249.76,19.79802985]
[1732205737910,18.54276828,250.04,249.92,18.54276828]
[1732205738719,18.54276828,250.08,249.96,18.54276828]
[1732205739099,18.54276828,250.04,249.93,18.54276828]
[1732205739618,13.26743938,250.04,249.93,18.54276828]
[1732205740906,18.54276828,249.98,249.87,18.54276828]
[1732205741422,18.54276828,249.94,249.85,18.54276828]
[1732205741615,18.54276828,249.94,249.83,18.54276828]
[1732205742323,18.54276828,249.94,249.72,18.54276828]
[1732205742324,18.54276828,249.88,249.77,18.54276828]
[1732205742512,18.54276828,249.86,249.75,18.54276828]
[1732205743224,18.54276828,249.86,249.61,0.5]
[1732205743225,18.54276828,249.84,249.73,18.54276828]
[1732205743431,18.54276828,249.82,249.71,18.54276828]
[1732205743725,18.54276828,249.76,249.65,18.54276828]
[1732205743926,18.54276828,249.78,249.67,18.54276828]
[1732205744430,27.6343,249.86,249.67,18.54276828]
[1732205744431,4.0011,249.93,249.77,18.54276828]
[1732205744725,18.54276828,249.93,249.82,18.54276828]
[1732205745044,18.54276828,249.91,249.8,18.54276828]
[1732205745700,18.54276828,249.87,249.76,18.54276828]
[1732205746112,4.0009,249.94,249.76,18.54276828]
[1732205746314,18.54276828,249.85,249.74,18.54276828]